Cogmind - Beta 13 @@@ ROGUE MODE // 2024.04.06 @ 16:34:29 Player: Tophor Result: Destroyed by Y0-5H9(R) with Subdweller Laser Performance ------------- Evolutions (0) 0 Regions Visited (2) 400 Robots Destroyed (19) 95 Value Destroyed (482) 482 Prototype IDs (0) 0 Alien Tech Used (0) 0 Bonus (0) 0 TOTAL SCORE: 977 Bonus ------- None Cogmind --------- Core Integrity 0/250 Matter 265/300 Energy 100/100 System Corruption 0% Temperature Cool (6) Movement Core (100) Ox1 Location -10/Subcaves Parts ------- > --- POWER (1) -------- (None) > --- PROPULSION (2) --- (None) > --- UTILITY (2) ------ (None) > --- WEAPON (2) ------- Assault Rifle Light Cannon > --- INVENTORY (5) ---- Ion Engine Makeshift Leg ECM Suite ECM Suite Makeshift Hacking Suite Peak State ------------ > --- POWER ------------ Light Ion Engine > --- PROPULSION ------- Light Treads Light Treads > --- UTILITY ---------- Scrap Shield > --- WEAPON ----------- Assault Rifle Light Cannon > --- INVENTORY -------- Ion Engine Makeshift Leg ECM Suite ECM Suite Makeshift Hacking Suite [Rating: 10] Favorites ----------- Power Light Ion Engine Engine Light Ion Engine Propulsion Light Treads Treads Light Treads Utility Small Storage Unit Device ECM Suite Storage Small Storage Unit Protection Scrap Shield Weapon Assault Rifle Ballistic Gun Assault Rifle Ballistic Cannon Light Cannon Build | -11 -10 -10 ------- Run | Yrd Mat Sub Slots Evolved . | . . . Power . | . . . Propulsion . | . . . Utility . | . . . Weapon . | . . . Parts Attached 12 | 5 6 1 Power 2 | 1 1 . Engine 2 | 1 1 . Core . | . . . Reactor . | . . . Propulsion 3 | 2 1 . Treads 3 | 2 1 . Leg . | . . . Wheel . | . . . Hover . | . . . Flight . | . . . Utility 3 | 1 1 1 Device 1 | . 1 . Storage 1 | 1 . . Processor . | . . . Hackware . | . . . Protection 1 | . . 1 Artifact . | . . . Weapon 4 | 1 3 . Energy Gun . | . . . Energy Cannon . | . . . Ballistic Gun 3 | 1 2 . Ballistic Cannon 1 | . 1 . Launcher . | . . . Special Weapon . | . . . Impact Weapon . | . . . Slashing Weapon . | . . . Piercing Weapon . | . . . Special Melee Weapon . | . . . Unidentified Prototypes . | . . . Parts Lost 8 | . 4 4 Power 2 | . 1 1 Propulsion 3 | . 1 2 Utility 1 | . . 1 Weapon 2 | . 2 . Highest Loss Streak 3 | . 2 3 To Critical Strikes 1 | . . 1 Average Slot Usage (%) 86 | . 88 76 Engine 12 | . 13 11 Treads 25 | . 26 24 Device 5 | . 6 1 Storage 11 | . 14 1 Protection 1 | . . 9 Ballistic Gun 23 | . 26 14 Ballistic Cannon 3 | . 1 14 Naked Turns . | . . . Heaviest Build 26 | 10 15 26 Greatest Support 40 | 40 40 40 Greatest Overweight (x) 1 | . . 1 Average Overweight (x) . | . . . Largest Inventory Capacity 8 | 8 8 8 Average Capacity 7 | 6 8 5 Most Carried 7 | 5 7 7 Average Carried 4 | 1 4 4 Final Capacity 8 | 8 8 5 Final Carried 5 | 1 5 5 Class Distribution -------------------- 100% | Mutant Dominant Class ---------------- Mutant | -10/Materials Mutant | -10/Subcaves Resources | -11 -10 -10 ----------- Run | Yrd Mat Sub Matter Collected 658 | 192 442 24 Remotely . | . . . Salvage Created 677 | . 564 113 Parts 47 | . 39 8 Haulers Intercepted 2 | . 2 . Recyclers Shooed . | . . . Parts Field Recycled . | . . . Retrieved Matter . | . . . Parts Self-Destructed . | . . . Prevented . | . . . Kills | -11 -10 -10 ------- Run | Yrd Mat Sub Combat Hostiles Destroyed 14 | . 11 3 Guns 10 | . 10 . Cannons 3 | . . 3 AOE 1 | . 1 . Classes Destroyed 7 | . 6 1 Worker 1 | . 1 . Hauler 2 | . 2 . Recycler 1 | . 1 . Operator 1 | . 1 . Swarmer 3 | . 3 . Grunt 8 | . 8 . Subdweller 3 | . . 3 Best Kill Streak 3 | . 3 1 Combat Bots Only 3 | . 3 1 Max Kills in Single Turn 1 | . 1 1 Gunslinging . | . . . Exploded 1 | . 1 . Melee . | . . . Uniques/NPCs Destroyed . | . . . Combat | -11 -10 -10 -------- Run | Yrd Mat Sub Hostile Shots Fired 119 | . 87 32 Missed 31 | . 21 10 Damage Taken 1377 | . 724 653 Core 263 | . 95 168 Absorbed by Shields . | . . . Core Remaining (%) 100 | 100 . . Volleys Fired 69 | . 60 9 Largest 2 | . 2 2 Hottest 55 | . 55 55 Shots Fired 131 | . 113 18 Gun 117 | . 108 9 Cannon 14 | . 5 9 Launcher . | . . . Special . | . . . Kinetic 131 | . 113 18 Thermal . | . . . Explosive . | . . . Electromagnetic . | . . . Robot Hit Streak 11 | . 9 11 Robot Miss Streak 4 | . 4 1 Penetration Max . | . . . Secondary Targets 3 | . 3 . Max Gunslinging Chain 1 | . 1 . Shots Hit Robots 76 | . 61 15 Core Hits 34 | . 28 6 Critical Kills . | . . . Critical Parts Destroyed . | . . . Critical Strikes 1 | . . 1 Blast 1 | . . 1 Melee Attacks . | . . . Impact . | . . . Slashing . | . . . Piercing . | . . . Sneak Attacks . | . . . Combat Hostiles . | . . . Follow-up Attacks . | . . . Damage Inflicted 1091 | . 868 223 Guns 837 | . 763 74 Cannons 185 | . 36 149 Explosions 60 | . 60 . Melee . | . . . Ramming 9 | . 9 . Kinetic 1022 | . 799 223 Thermal . | . . . Explosive . | . . . Electromagnetic 60 | . 60 . Impact . | . . . Slashing . | . . . Piercing . | . . . Highest Corruption . | . . . Average Corruption . | . . . Corruption Purged . | . . . Corruption Blocked . | . . . Overload Shots . | . . . Overflow Damage . | . . . Projectiles . | . . . Explosions . | . . . Melee . | . . . Knockbacks 2 | . . 2 Impact . | . . . Kinetic 1 | . . 1 Secondary 1 | . . 1 Self-Inflicted Damage . | . . . Shots . | . . . Rammed 1 | . 1 . Targets Rammed 2 | . 2 . Kicked . | . . . Crushed 1 | . 1 . Highest Temperature 20 | . 20 . Average Temperature 6 | . 6 . Received Heat Transfer 447 | . 405 42 Siege Activations . | . . . Robots Corrupted . | . . . Combat Hostiles . | . . . Parts Fried . | . . . Impact Corruptions . | . . . Robots Melted . | . . . Combat Hostiles . | . . . Parts Melted . | . . . Heat Transferred . | . . . Parts Sabotaged . | . . . Parts Stolen . | . . . Parts Stripped . | . . . Power Chain Reactions . | . . . Alert | -11 -10 -10 ------- Run | Yrd Mat Sub Peak Influence 157 | . 157 . Initial . | . . . Average 52 | . 55 . Maximum Alert Level . | . . . Low Security (%) 100 | 100 100 . Level 1 . | . . . Level 2 . | . . . Level 3 . | . . . Level 4 . | . . . Level 5 . | . . . High Security . | . . . Max Security . | . . . Squads Dispatched 3 | . 3 . Investigation 2 | . 2 . Extermination . | . . . Reinforcement 1 | . 1 . Assault . | . . . Garrison . | . . . Intercept . | . . . Searches Triggered . | . . . Construction Impeded . | . . . Haulers Reinforced . | . . . Active Scanning Responses . | . . . Cargo Convoy Interrupts . | . . . Stealth | -11 -10 -10 --------- Run | Yrd Mat Sub Distress Signals . | . . . Communications Jammed . | . . . Distress Signals . | . . . Times Spotted 21 | . 13 8 Peak Tracking Total 6 | . 3 6 Tactical Retreats . | . . . Traps | -11 -10 -10 ------- Run | Yrd Mat Sub Traps Triggered 5 | . 2 3 Indirectly . | . . . Trap Hack Attempts . | . . . Triggered . | . . . Disarmed . | . . . Reprogrammed . | . . . Reused . | . . . Traps Extracted . | . . . Installed . | . . . Triggered . | . . . Machines | -11 -10 -10 ---------- Run | Yrd Mat Sub Machines Disabled 2 | . 2 . Max in Single Turn 1 | . 1 . Machines Repaired . | . . . Machines Dismantled . | . . . Machines Sabotaged . | . . . Overloaded Fab Kills . | . . . Hacking | -11 -10 -10 --------- Run | Yrd Mat Sub Machines Accessed 3 | . 3 . Terminals 2 | . 2 . Fabricators . | . . . Repair Stations . | . . . Recycling Units 1 | . 1 . Scanalyzers . | . . . Garrison Access . | . . . Total Hacks 6 | . 6 . Successful 3 | . 3 . Failed 3 | . 3 . Catastrophic . | . . . Database Lockouts . | . . . Manual . | . . . Terminals 5 | . 5 . Fabricators . | . . . Repair Stations . | . . . Recycling Units 1 | . 1 . Scanalyzers . | . . . Garrison Access . | . . . Terminal Hacks 2 | . 2 . Dispatch Records 1 | . 1 . Surveillance Status 1 | . 1 . Fabricator Hacks . | . . . Repair Station Hacks . | . . . Recycling Unit Hacks 1 | . 1 . Report Inventory 1 | . 1 . Scanalyzer . | . . . Garrison Access Hacks . | . . . Unauthorized Hacks . | . . . Terminals . | . . . Fabricators . | . . . Repair Stations . | . . . Recycling Units . | . . . Scanalyzers . | . . . Garrison Access . | . . . Data Cores Recovered 1 | . 1 . Used . | . . . Hacking Detections 1 | . 1 . Full Trace Events 1 | . 1 . Feedback Events . | . . . Feedback Blocked . | . . . Robot Schematics Acquired . | . . . Robots Built . | . . . Authchips . | . . . Time . | . . . Total Robot Build Rating . | . . . Part Schematics Acquired . | . . . Parts Built . | . . . Authchips . | . . . Time . | . . . Total Part Build Rating . | . . . Parts Repaired . | . . . Time . | . . . Parts Recycled . | . . . Recycled Matter . | . . . Retrieved Matter . | . . . Retrieved Components . | . . . Parts Scanalyzed . | . . . Part Schematics Acquired . | . . . Parts Damaged . | . . . Bothacking | -11 -10 -10 ------------ Run | Yrd Mat Sub Used RIF Installer . | . . . Robots Hacked . | . . . Non-combat . | . . . Combat . | . . . Robot Hacks Applied . | . . . Relay Couplers Released . | . . . Fabnet Peak Effective % . | . . . Robots Rewired . | . . . Allies Hacked . | . . . Hacks Repelled . | . . . Allies | -11 -10 -10 -------- Run | Yrd Mat Sub Total Allies . | . . . Largest Group . | . . . Highest-Rated Group . | . . . Highest-Rated Ally . | . . . Total Orders . | . . . Ally Attacks . | . . . Total Damage . | . . . Kills . | . . . Allies Corrupted . | . . . Allies Melted . | . . . Intel | -11 -10 -10 ------- Run | Yrd Mat Sub Robot Analysis Total . | . . . Derelict Logs Recovered 1 | . . 1 Drone Launches . | . . . Drone Recoveries . | . . . Exploration | -11 -10 -10 ------------- Run | Yrd Mat Sub Turns Passed 1447 | 61 1121 265 Spaces Moved 759 | 51 565 143 Core 33 | 28 . 5 Treads 726 | 23 565 138 Legs . | . . . Wheels . | . . . Hover . | . . . Flight . | . . . Fastest Speed 50 | 50 160 100 Average Speed 155 | 99 160 157 Slowest Speed 160 | 160 160 160 Overloaded Moves . | . . . Propulsion Burnouts . | . . . Robots Hopped . | . . . Cave-ins Triggered . | . . . Exploration Rate (%) 30 | 4 75 12 Regions Visited 2 Branch Regions 1 Pre-discovered Areas 1 | . . 1 Known Exits Taken . | . . . Unknown Exits Taken 2 | 1 1 . Scrap Searched . | . . . Spaces Dug . | . . . Terrain Destroyed . | . . . Melee . | . . . Projectile . | . . . AOE . | . . . Terrain Rammed . | . . . Walls Destroyed . | . . . Machines Disabled . | . . . Actions | -11 -10 -10 --------- Run | Yrd Mat Sub Total 893 | 61 668 164 Wait 26 | . 24 2 Move 757 | 50 564 143 Hop . | . . . Pick Up 21 | 6 11 4 Fast Attach . | . . . Attach 12 | 5 6 1 Detach . | . . . Swap . | . . . Drop 6 | . 1 5 Fire 69 | . 60 9 Melee . | . . . Ram . | . . . Kick . | . . . Crush 2 | . 2 . Escape Stasis . | . . . Rewire . | . . . Trap . | . . . Miscellaneous . | . . . Route ------- -11/Scrapyard -10/Materials (discovered 3 exits: [*Mat x2] / [*Sub]) -10/Subcaves History --------- Turn | Location | Event 12 | -11/Scrapyard | Discovered new exit (range 15) 62 | -11/Scrapyard | Entered Materials 315 | -10/Materials | Build established: Mutant 361 | -10/Materials | Discovered new exit (range 16) 716 | -10/Materials | Discovered new exit (range 8) 1173 | -10/Materials | Discovered new exit (range 6) 1183 | -10/Materials | Entered Subcaves 1265 | -10/Subcaves | Core integrity fell below 50% 1347 | -10/Subcaves | Learned location of Recycling (-7) 1353 | -10/Subcaves | Ambushed by swarm of Subdwellers 1356 | -10/Subcaves | Ambushed by Subdwellers from Twisted Machinery 1383 | -10/Subcaves | Core integrity fell below 20% 1404 | -10/Subcaves | Lost 3 allies 1426 | -10/Subcaves | A swath of the cavern ceiling suddenly collapsed 1427 | -10/Subcaves | Lost 3 parts (1p1n1u) 1448 | -10/Subcaves | Destroyed by Y0-5H9(R) with Subdweller Laser Last Messages --------------- 86-EA4(R) emerges from the Twisted Machinery. HV Slug penetrates Twisted Machinery. BP-L11(R) angrily emerges from the Twisted Machinery. 3A-7UN(h) destroyed. Subatomizers dissect the Disposable Heat Sink. Dropped Lgt. Treads. Acquired Mak. Leg. J3-T57(R) destroyed. HZ-4PW(R) affixes Scrap Shield Fragment to Scrap Shield. Critical hit (Destroy). Scrap Shield destroyed. Y0-5H9(R) emerges from concealment. Lgt. Ion Engine destroyed. Lgt. Treads destroyed. A swath of the cavern ceiling suddenly collapses. Critical hit (Destroy). Lgt. Treads destroyed. 86-EA4(R) Sub. Optics blasted off. 86-EA4(R) destroyed. SX-DQP(R) knocked back. Map ----- +----------------------------------------------------+ | ?????????????????????????????????????????????????? | | ?????????????????????????????????????????????????? | | ?????????????????????????????????????????????????? | | ?????????????????????????????????????????????????? | | ?????????????????????????????????????????????????? | | ??????????????????????????????????#####??????????? | | ?????????????????????????????????? # ???????????? | | ??????????????????????????###?????# #???????????? | | ??????????????????????????# ###### #???????????? | | ??????????????????????????# ## ######??????? | | ?????????????????????????## # #??????? | | ????????????????????????## ####???? | | ?????????????????????#### ##??? | | ?????????????????????# #??? | | ????????????????????## ### #???? | | ????????????????????# #?## ####???? | | ????????????????????## #??## ## ####???? | | ?????????????????????## ##???## ## ##??? | | ??????????????????????# ####??# #### #??? | | ?????????????????????## % ## ??###### ##???? | | ?????????????????????# ## # # ##????? | | ?????????????????????# ! # # #?????? | | ?????????????????????###=## ?# = ##?????? | | ??????????????????????#%RR# ##### % ##??????? | | ??????????????????????##RR## ### #???????? | | ??????????????????????###@## #???????? | | ???????????????????????##### ##??????? | | ????????????????????????? ?# #??????? | | ????????????????????????? ?## #??????? | | ????????????????????????? ?## #??????? | | ##??????????????????????? ??## ## #??????? | | ????????????????????#?? ??##! # ### #??????? | | # ?????????????????## ?? ??# %[ #? #??????? | | ?# ######??????????## ?? ?###! ##?# #??????? | | ## #"""#??????????? ??? ?# !% ##?# #??????? | | "##?????????? ?????## ##?##??????? | | ^ "#?????????? ??????## "?????????? | | # ##?????????# ?????### % %&## " ###????? | | # ##???????## #?????# &!*&!&## #????? | | ## """ #???????# #?????# %![ ]%= #???? | | ?##### ##??????# ##???## %!%& &! #???? | | ?????# #??????# #???# & #???? | | ?????## ######## #???# #???? | | ??????# ### ##### #### #??? | | ??????## ^ ##" ##????????? | | ???????##### # # # ##?????????? | | ???????????##### # % ### #??????????? | | ??????????## ####" # ! ###?? #??????????? | | ?????????##! "##### ## # #???? ?????????? | | ????????## / ""#??# ##### #???? ???????? | +----------------------------------------------------+ Best States ------------- Heat Dissipation 25 Energy Generation 10 Energy Capacity 125 Matter Stores 300 Matter Capacity 300 Sight Range 16 Terrain Scan Density 10 ECM Strength 1 Armor Coverage 800 Evasion (%) 50 Recoil Reduction 2 Item Schematics ----------------- None Robot Schematics ------------------ None Fabricated ------------ Nothing Alien Tech Used ----------------- None Achievements -------------- None Challenges ------------ None Game ------ Seed SwarmDisruptionCloak Manual? 0 Play Time 00:24:53 Cumulative 3.2 hours Start 2024.04.05 @ 18:07:47 End 2024.04.06 @ 16:34:29 Sessions 3 Manual Loads 0 Difficulty Rogue Special Mode None Game No. 4 Rogue 4 Adventurer 0 Explorer 0 Win Type - Total 0 Types 0/0/0/0/0/0/0/0/0 Lore% 5 Gallery% 6 Achievement% 7 Wizard Run 0 Options --------- Layout 0 ASCII 0 Keyboard 1 Movement Numpad Keybinds 0 Fullscreen 1 Font 18/SmallcapsGlow Map View 76x50 Zoom Use 0% Tactical HUD 0 Map Filters NONE Filters NONE Steam 1 RUN: 86027a72-d1b4-4c8a-913b-c77df827a7b1